[Event "Early-Titled-Tuesday-Blitz-November-28-2023"]
[Site "Chess.com"]
[Date "2023.11.28"]
[Round "5"]
[White "Artem_Sadovsky"]
[Black "djokovic74"]
[Result "1-0"]
[WhiteElo "2519"]
[BlackElo "2675"]
[TimeControl "180+1"]
[EndTime "8:58:42 PST"]
[Termination "Artem_Sadovsky won by resignation"]

1. Nf3 {[%clk 0:02:46.1]} 1... Nf6 {[%clk 0:02:54.2]} 2. e3 {[%clk 0:02:47]}
2... e6 {[%clk 0:02:53.8]} 3. b3 {[%clk 0:02:47.9]} 3... d5 {[%clk 0:02:53.9]}
4. Bb2 {[%clk 0:02:48.8]} 4... Be7 {[%clk 0:02:53.7]} 5. c4 {[%clk 0:02:49.5]}
5... O-O {[%clk 0:02:54.2]} 6. Be2 {[%clk 0:02:50.2]} 6... c5 {[%clk 0:02:53.9]}
7. cxd5 {[%clk 0:02:50]} 7... Nxd5 {[%clk 0:02:53.4]} 8. O-O {[%clk 0:02:50.7]}
8... Nc6 {[%clk 0:02:53.7]} 9. Nc3 {[%clk 0:02:49]} 9... Bf6 {[%clk 0:02:50.7]}
10. Qb1 {[%clk 0:02:49.6]} 10... b6 {[%clk 0:02:47.1]} 11. Nxd5 {[%clk
0:02:46.8]} 11... exd5 {[%clk 0:02:46.7]} 12. Rc1 {[%clk 0:02:40.2]} 12... Bb7
{[%clk 0:02:43.3]} 13. d4 {[%clk 0:02:38.1]} 13... cxd4 {[%clk 0:02:39]} 14.
Nxd4 {[%clk 0:02:38]} 14... Nxd4 {[%clk 0:02:39.4]} 15. Bxd4 {[%clk 0:02:38.7]}
15... Bxd4 {[%clk 0:02:35.8]} 16. exd4 {[%clk 0:02:39.6]} 16... Re8 {[%clk
0:02:35.9]} 17. Bf3 {[%clk 0:02:39.3]} 17... Qd6 {[%clk 0:02:31.2]} 18. Qf5
{[%clk 0:02:37.2]} 18... g6 {[%clk 0:02:27.2]} 19. Qg5 {[%clk 0:02:37.2]} 19...
Kg7 {[%clk 0:02:25.3]} 20. h4 {[%clk 0:02:36.8]} 20... h6 {[%clk 0:02:21.2]} 21.
Qd2 {[%clk 0:02:35.9]} 21... Re7 {[%clk 0:02:15.8]} 22. Re1 {[%clk 0:02:27.1]}
22... Rae8 {[%clk 0:02:13]} 23. Rxe7 {[%clk 0:02:27.8]} 23... Rxe7 {[%clk
0:02:12.2]} 24. g3 {[%clk 0:02:28.4]} 24... Bc8 {[%clk 0:02:06.1]} 25. Re1
{[%clk 0:02:26.7]} 25... Rxe1+ {[%clk 0:01:55.9]} 26. Qxe1 {[%clk 0:02:27.6]}
26... Be6 {[%clk 0:01:55.5]} 27. b4 {[%clk 0:02:17.1]} 27... Qc7 {[%clk
0:01:54.1]} 28. a3 {[%clk 0:01:43.3]} 28... Kf8 {[%clk 0:01:40.7]} 29. Qe3
{[%clk 0:01:29.4]} 29... Kg7 {[%clk 0:01:40.3]} 30. Qe5+ {[%clk 0:01:09.6]}
30... Qxe5 {[%clk 0:01:39.2]} 31. dxe5 {[%clk 0:01:10.5]} 31... f6 {[%clk
0:01:39.7]} 32. exf6+ {[%clk 0:01:11.4]} 32... Kxf6 {[%clk 0:01:40.3]} 33. Kf1
{[%clk 0:01:12.3]} 33... Ke5 {[%clk 0:01:36.2]} 34. Ke2 {[%clk 0:01:12.8]} 34...
d4 {[%clk 0:01:28.1]} 35. Kd2 {[%clk 0:01:09]} 35... Bf5 {[%clk 0:01:26]} 36.
Bc6 {[%clk 0:01:04.3]} 36... g5 {[%clk 0:01:14.8]} 37. hxg5 {[%clk 0:01:04.2]}
37... hxg5 {[%clk 0:01:13.5]} 38. Bb5 {[%clk 0:01:00.1]} 38... Be4 {[%clk
0:01:03.4]} 39. Be2 {[%clk 0:00:57.6]} 39... Bd5 {[%clk 0:00:59.7]} 40. Kd3
{[%clk 0:00:52.9]} 40... Be4+ {[%clk 0:00:58.1]} 41. Kc4 {[%clk 0:00:50.1]}
41... a6 {[%clk 0:00:29.6]} 42. f4+ {[%clk 0:00:37.4]} 42... gxf4 {[%clk
0:00:29.2]} 43. gxf4+ {[%clk 0:00:38.3]} 43... Kxf4 {[%clk 0:00:29.7]} 44. Kxd4
{[%clk 0:00:39.2]} 44... Bb7 {[%clk 0:00:29.9]} 45. Bd3 {[%clk 0:00:37.3]} 45...
Kf3 {[%clk 0:00:25.7]} 46. a4 {[%clk 0:00:34.2]} 46... Kf2 {[%clk 0:00:13.8]}
47. a5 {[%clk 0:00:34.1]} 47... bxa5 {[%clk 0:00:12.8]} 48. bxa5 {[%clk
0:00:35]} 48... Bc8 {[%clk 0:00:09.5]} 49. Bc4 {[%clk 0:00:32.6]} 49... Ke1
{[%clk 0:00:05.3]} 50. Kc5 {[%clk 0:00:32.9]} 50... Kd2 {[%clk 0:00:05.4]} 51.
Kb6 {[%clk 0:00:33.8]} 51... Kc3 {[%clk 0:00:05.3]} 52. Bxa6 {[%clk 0:00:34.7]}
52... Bf5 {[%clk 0:00:04.5]} 53. Bf1 {[%clk 0:00:31.1]} 53... Be4 {[%clk
0:00:01.9]} 54. a6 {[%clk 0:00:30.4]} 54... Kd4 {[%clk 0:00:02]} 55. a7 {[%clk
0:00:29.7]} 55... Ke5 {[%clk 0:00:02.4]} 56. Ba6 {[%clk 0:00:30.4]} 56... Kd6
{[%clk 0:00:02.4]} 57. Bb7 {[%clk 0:00:31]} 1-0

[Event "Early-Titled-Tuesday-Blitz-November-28-2023"]
[Site "Chess.com"]
[Date "2023.11.28"]
[Round "5"]
[White "tetrix83"]
[Black "Alexsur1981"]
[Result "1/2-1/2"]
[WhiteElo "2525"]
[BlackElo "2828"]
[TimeControl "180+1"]
[EndTime "8:58:43 PST"]
[Termination "Game drawn by repetition"]

1. Nf3 {[%clk 0:03:00.9]} 1... Nf6 {[%clk 0:02:53.2]} 2. g3 {[%clk 0:03:00.8]}
2... b5 {[%clk 0:02:53.2]} 3. Bg2 {[%clk 0:02:59.6]} 3... Bb7 {[%clk 0:02:53.6]}
4. d4 {[%clk 0:02:57.2]} 4... e6 {[%clk 0:02:53.5]} 5. O-O {[%clk 0:02:57.3]}
5... c5 {[%clk 0:02:54.1]} 6. Na3 {[%clk 0:02:56.6]} 6... a6 {[%clk 0:02:46.1]}
7. c4 {[%clk 0:02:56.6]} 7... b4 {[%clk 0:02:46.1]} 8. Nc2 {[%clk 0:02:56.8]}
8... cxd4 {[%clk 0:02:46.3]} 9. Ncxd4 {[%clk 0:02:50.9]} 9... Qc7 {[%clk
0:02:33.7]} 10. Bf4 {[%clk 0:02:34.5]} 10... d6 {[%clk 0:02:28.7]} 11. Bg5
{[%clk 0:02:30.7]} 11... Nbd7 {[%clk 0:02:26.7]} 12. b3 {[%clk 0:02:23.8]} 12...
Be7 {[%clk 0:02:24.8]} 13. Qd2 {[%clk 0:02:21.5]} 13... Ne4 {[%clk 0:02:11.7]}
14. Qe3 {[%clk 0:02:13.4]} 14... Nxg5 {[%clk 0:01:57.2]} 15. Nxg5 {[%clk
0:02:13.2]} 15... Bxg2 {[%clk 0:01:57.9]} 16. Kxg2 {[%clk 0:02:13]} 16... Nc5
{[%clk 0:01:51.6]} 17. f3 {[%clk 0:01:59.4]} 17... Qb7 {[%clk 0:01:44.4]} 18.
Rad1 {[%clk 0:01:44.5]} 18... O-O {[%clk 0:01:41.7]} 19. Ne4 {[%clk 0:01:38.4]}
19... Nxe4 {[%clk 0:01:37.9]} 20. Qxe4 {[%clk 0:01:38.7]} 20... Qxe4 {[%clk
0:01:37]} 21. fxe4 {[%clk 0:01:39.6]} 21... Rfc8 {[%clk 0:01:36]} 22. h4 {[%clk
0:01:33.4]} 22... Rc5 {[%clk 0:01:34.1]} 23. Nc2 {[%clk 0:01:30]} 23... Rb8
{[%clk 0:01:31.4]} 24. Rd2 {[%clk 0:01:27.3]} 24... h5 {[%clk 0:01:30.6]} 25.
Nd4 {[%clk 0:01:14]} 25... Bf6 {[%clk 0:01:21.5]} 26. Nf3 {[%clk 0:01:12.4]}
26... Rb6 {[%clk 0:01:20.1]} 27. Rfd1 {[%clk 0:01:12]} 27... Rcc6 {[%clk
0:01:16.3]} 28. e5 {[%clk 0:01:08.4]} 28... dxe5 {[%clk 0:01:07.3]} 29. e4
{[%clk 0:01:03.9]} 29... a5 {[%clk 0:00:58.6]} 30. Rd7 {[%clk 0:01:02.7]} 30...
a4 {[%clk 0:00:58.7]} 31. Ra7 {[%clk 0:01:01.2]} 31... axb3 {[%clk 0:00:58.5]}
32. axb3 {[%clk 0:01:02.1]} 32... Ra6 {[%clk 0:00:59]} 33. Rdd7 {[%clk
0:01:00.9]} 33... Rxa7 {[%clk 0:00:56.3]} 34. Rxa7 {[%clk 0:01:01.8]} 34... Rb6
{[%clk 0:00:45.3]} 35. Kf2 {[%clk 0:00:55.5]} 35... Kf8 {[%clk 0:00:42.6]} 36.
Ne1 {[%clk 0:00:48.5]} 36... g5 {[%clk 0:00:38]} 37. hxg5 {[%clk 0:00:46.3]}
37... Bxg5 {[%clk 0:00:38.9]} 38. Nd3 {[%clk 0:00:46.8]} 38... Rd6 {[%clk
0:00:32.7]} 39. Nxe5 {[%clk 0:00:38.3]} 39... Rd2+ {[%clk 0:00:33]} 40. Kf3
{[%clk 0:00:30.4]} 40... f6 {[%clk 0:00:33.9]} 41. Nd7+ {[%clk 0:00:25.1]} 41...
Ke8 {[%clk 0:00:33]} 42. Nc5 {[%clk 0:00:25.5]} 42... Rc2 {[%clk 0:00:24]} 43.
Rb7 {[%clk 0:00:22.1]} 43... Rc3+ {[%clk 0:00:23.9]} 44. Kg2 {[%clk 0:00:22.1]}
44... Be3 {[%clk 0:00:20.6]} 45. Nxe6 {[%clk 0:00:21.1]} 45... Rxb3 {[%clk
0:00:20.9]} 46. c5 {[%clk 0:00:21.8]} 46... Rc3 {[%clk 0:00:19.7]} 47. Rxb4
{[%clk 0:00:17.9]} 47... Ke7 {[%clk 0:00:20.2]} 48. Nf4 {[%clk 0:00:17]} 48...
Bxf4 {[%clk 0:00:19.8]} 49. gxf4 {[%clk 0:00:17.1]} 49... Rxc5 {[%clk
0:00:20.7]} 50. Rb7+ {[%clk 0:00:15]} 50... Ke6 {[%clk 0:00:20.5]} 51. Rh7
{[%clk 0:00:14.9]} 51... Ra5 {[%clk 0:00:19.5]} 52. Kg3 {[%clk 0:00:15]} 52...
Ra3+ {[%clk 0:00:19.5]} 53. Kg2 {[%clk 0:00:13.7]} 53... Ra2+ {[%clk 0:00:20]}
54. Kf3 {[%clk 0:00:13.9]} 54... Ra3+ {[%clk 0:00:20.6]} 55. Kg2 {[%clk
0:00:13.8]} 55... Ra2+ {[%clk 0:00:21.2]} 56. Kg3 {[%clk 0:00:10.8]} 56... Ra4
{[%clk 0:00:20.5]} 57. Kf3 {[%clk 0:00:07.5]} 57... Ra3+ {[%clk 0:00:14.4]} 58.
Kg2 {[%clk 0:00:05.4]} 1/2-1/2

[Event "Early-Titled-Tuesday-Blitz-November-28-2023"]
[Site "Chess.com"]
[Date "2023.11.28"]
[Round "5"]
[White "suyu28"]
[Black "JoliyRoger"]
[Result "1-0"]
[WhiteElo "2731"]
[BlackElo "2500"]
[TimeControl "180+1"]
[EndTime "8:58:43 PST"]
[Termination "suyu28 won by resignation"]

1. e4 {[%clk 0:03:00.9]} 1... c6 {[%clk 0:03:00]} 2. d4 {[%clk 0:03:00]} 2... d5
{[%clk 0:03:00.9]} 3. e5 {[%clk 0:03:00.3]} 3... Bf5 {[%clk 0:03:00.6]} 4. h4
{[%clk 0:03:00.6]} 4... Qb6 {[%clk 0:03:00.9]} 5. g4 {[%clk 0:02:42.9]} 5... Bd7
{[%clk 0:03:00.2]} 6. h5 {[%clk 0:02:38.3]} 6... e6 {[%clk 0:03:00.5]} 7. f4
{[%clk 0:02:37.7]} 7... c5 {[%clk 0:03:00.1]} 8. c3 {[%clk 0:02:37.4]} 8... Nc6
{[%clk 0:03:00.2]} 9. Nf3 {[%clk 0:02:37.3]} 9... Rc8 {[%clk 0:02:59.7]} 10. a3
{[%clk 0:02:19.4]} 10... Nh6 {[%clk 0:02:46.3]} 11. Bh3 {[%clk 0:02:05.5]} 11...
cxd4 {[%clk 0:02:46.6]} 12. cxd4 {[%clk 0:02:05.4]} 12... Nxd4 {[%clk
0:02:46.6]} 13. Nxd4 {[%clk 0:02:02.7]} 13... Rxc1 {[%clk 0:02:44.5]} 14. Qxc1
{[%clk 0:02:03.6]} 14... Qxd4 {[%clk 0:02:44.4]} 15. Nc3 {[%clk 0:01:52.3]}
15... Bc5 {[%clk 0:02:42.7]} 16. Qd2 {[%clk 0:01:52.2]} 16... Qc4 {[%clk
0:02:05.8]} 17. g5 {[%clk 0:01:05.8]} 17... Ng8 {[%clk 0:01:59.5]} 18. Bf1
{[%clk 0:00:59.2]} 18... Qb3 {[%clk 0:01:51.1]} 19. Rh3 {[%clk 0:00:59.8]} 19...
Qb6 {[%clk 0:01:47.1]} 20. b4 {[%clk 0:00:47.4]} 20... Bg1 {[%clk 0:01:19.8]}
21. Bd3 {[%clk 0:00:44.9]} 21... Ne7 {[%clk 0:01:15]} 22. Kf1 {[%clk 0:00:44.4]}
22... Bd4 {[%clk 0:01:03.8]} 23. Rc1 {[%clk 0:00:43.1]} 23... a6 {[%clk
0:00:55.8]} 24. Ne2 {[%clk 0:00:42.3]} 24... Nc6 {[%clk 0:00:50]} 25. Bb1 {[%clk
0:00:31.7]} 25... a5 {[%clk 0:00:38.2]} 26. Rxc6 {[%clk 0:00:30.7]} 26... Bxc6
{[%clk 0:00:37.3]} 27. Nxd4 {[%clk 0:00:30.7]} 27... Bd7 {[%clk 0:00:36.5]} 28.
Kg2 {[%clk 0:00:16.6]} 28... Ke7 {[%clk 0:00:27.2]} 29. Bc2 {[%clk 0:00:09.9]}
29... Rc8 {[%clk 0:00:27.3]} 30. Rc3 {[%clk 0:00:09.1]} 30... Ra8 {[%clk
0:00:24]} 31. Rc5 {[%clk 0:00:08.7]} 31... axb4 {[%clk 0:00:14.6]} 32. Qxb4
{[%clk 0:00:08.4]} 32... Qxb4 {[%clk 0:00:15.1]} 33. axb4 {[%clk 0:00:09.3]}
33... Ra2 {[%clk 0:00:15.4]} 34. Kf3 {[%clk 0:00:08.9]} 34... Kd8 {[%clk
0:00:15.9]} 35. Ke3 {[%clk 0:00:09.2]} 35... Ra3+ {[%clk 0:00:15.1]} 36. Kd2
{[%clk 0:00:08.6]} 36... b6 {[%clk 0:00:15.6]} 37. Rc3 {[%clk 0:00:08.5]} 37...
Ra2 {[%clk 0:00:16.2]} 38. Kc1 {[%clk 0:00:08.4]} 38... Ra7 {[%clk 0:00:15.7]}
39. Bxh7 {[%clk 0:00:08.2]} 39... Ra1+ {[%clk 0:00:15.2]} 40. Bb1 {[%clk
0:00:07.8]} 40... Ra8 {[%clk 0:00:12.2]} 41. Kb2 {[%clk 0:00:07.8]} 41... Ke7
{[%clk 0:00:11.8]} 42. h6 {[%clk 0:00:07.9]} 42... Rh8 {[%clk 0:00:12.3]} 43.
Rh3 {[%clk 0:00:06.6]} 43... g6 {[%clk 0:00:12.1]} 44. h7 {[%clk 0:00:06.6]}
44... b5 {[%clk 0:00:11.3]} 45. Bd3 {[%clk 0:00:07]} 45... Kf8 {[%clk
0:00:11.8]} 46. Bxb5 {[%clk 0:00:06.4]} 46... Bc8 {[%clk 0:00:12.7]} 47. Bd3
{[%clk 0:00:06.2]} 47... Kg7 {[%clk 0:00:13.6]} 48. b5 {[%clk 0:00:06.8]} 48...
Bb7 {[%clk 0:00:13.7]} 49. b6 {[%clk 0:00:07.2]} 49... Rb8 {[%clk 0:00:13.5]}
50. h8=Q+ {[%clk 0:00:07.2]} 50... Rxh8 {[%clk 0:00:13.3]} 51. Rxh8 {[%clk
0:00:08.1]} 51... Kxh8 {[%clk 0:00:14.2]} 52. Nb5 {[%clk 0:00:09]} 52... Kg7
{[%clk 0:00:15.1]} 53. Nd6 {[%clk 0:00:09.6]} 53... Bc6 {[%clk 0:00:15.9]} 54.
b7 {[%clk 0:00:10.2]} 54... Bxb7 {[%clk 0:00:16]} 55. Nxb7 {[%clk 0:00:11.1]}
55... Kf8 {[%clk 0:00:16.9]} 56. Nd6 {[%clk 0:00:12]} 56... Ke7 {[%clk
0:00:17.8]} 57. Bb5 {[%clk 0:00:12.1]} 57... Kf8 {[%clk 0:00:17.9]} 58. Be8
{[%clk 0:00:12.7]} 58... Ke7 {[%clk 0:00:18.6]} 59. Bxf7 {[%clk 0:00:13.4]} 1-0

[Event "Early-Titled-Tuesday-Blitz-November-28-2023"]
[Site "Chess.com"]
[Date "2023.11.28"]
[Round "5"]
[White "mishanick"]
[Black "shimastream"]
[Result "1-0"]
[WhiteElo "3067"]
[BlackElo "2946"]
[TimeControl "180+1"]
[EndTime "8:58:44 PST"]
[Termination "mishanick won on time"]

1. d4 {[%clk 0:03:00.9]} 1... d5 {[%clk 0:02:56.1]} 2. c4 {[%clk 0:03:01.4]}
2... e6 {[%clk 0:02:55.9]} 3. Nc3 {[%clk 0:03:02.1]} 3... Nf6 {[%clk 0:02:54.1]}
4. Bg5 {[%clk 0:03:02.7]} 4... Be7 {[%clk 0:02:50.3]} 5. e3 {[%clk 0:03:03.3]}
5... h6 {[%clk 0:02:46.8]} 6. Bh4 {[%clk 0:03:02.7]} 6... O-O {[%clk 0:02:44.7]}
7. Qc2 {[%clk 0:03:03.1]} 7... dxc4 {[%clk 0:02:36.6]} 8. Bxc4 {[%clk 0:03:03]}
8... c5 {[%clk 0:02:36.9]} 9. dxc5 {[%clk 0:03:03.5]} 9... Bxc5 {[%clk
0:02:36.8]} 10. Nf3 {[%clk 0:03:02]} 10... Nbd7 {[%clk 0:02:35.5]} 11. O-O
{[%clk 0:03:02.1]} 11... a6 {[%clk 0:02:34.8]} 12. Bd3 {[%clk 0:02:56.3]} 12...
Be7 {[%clk 0:02:31.4]} 13. e4 {[%clk 0:02:53.2]} 13... Nh5 {[%clk 0:02:21]} 14.
Bxe7 {[%clk 0:02:46.9]} 14... Qxe7 {[%clk 0:02:21.9]} 15. Rfd1 {[%clk
0:02:46.7]} 15... Nf4 {[%clk 0:02:12.6]} 16. Bf1 {[%clk 0:02:45.8]} 16... b5
{[%clk 0:01:52.9]} 17. Qd2 {[%clk 0:02:44.3]} 17... Ng6 {[%clk 0:01:52.6]} 18.
a4 {[%clk 0:02:41.2]} 18... Nc5 {[%clk 0:01:45.2]} 19. Qe3 {[%clk 0:02:35.9]}
19... b4 {[%clk 0:01:41.2]} 20. Ne2 {[%clk 0:02:33.2]} 20... Bb7 {[%clk
0:01:39.2]} 21. Ng3 {[%clk 0:02:33.7]} 21... a5 {[%clk 0:01:37.6]} 22. Bb5
{[%clk 0:02:32.6]} 22... Rfd8 {[%clk 0:01:36.9]} 23. h3 {[%clk 0:02:31.8]} 23...
Rac8 {[%clk 0:01:35.3]} 24. Rac1 {[%clk 0:02:29.9]} 24... Rxd1+ {[%clk
0:01:22.3]} 25. Rxd1 {[%clk 0:02:30.8]} 25... Bc6 {[%clk 0:01:18.5]} 26. Rc1
{[%clk 0:02:17.4]} 26... Bb7 {[%clk 0:01:08]} 27. Nd4 {[%clk 0:02:09.3]} 27...
Qg5 {[%clk 0:01:00.4]} 28. Qxg5 {[%clk 0:02:04.7]} 28... hxg5 {[%clk 0:01:01.3]}
29. f3 {[%clk 0:02:05.3]} 29... Nf4 {[%clk 0:01:00.1]} 30. Nge2 {[%clk
0:02:01.1]} 30... e5 {[%clk 0:00:46.5]} 31. Nxf4 {[%clk 0:01:59.3]} 31... exd4
{[%clk 0:00:41.4]} 32. Ne2 {[%clk 0:01:54.8]} 32... d3 {[%clk 0:00:39.9]} 33.
Nd4 {[%clk 0:01:54.5]} 33... Rd8 {[%clk 0:00:26.5]} 34. Rxc5 {[%clk 0:01:44.1]}
34... Rxd4 {[%clk 0:00:25.7]} 35. Rc1 {[%clk 0:01:43.4]} 35... d2 {[%clk
0:00:09.8]} 36. Rd1 {[%clk 0:01:43.4]} 36... Kf8 {[%clk 0:00:06.3]} 37. Kf2
{[%clk 0:01:43.4]} 37... Ke7 {[%clk 0:00:06.8]} 38. Ke3 {[%clk 0:01:43.8]} 38...
Rd8 {[%clk 0:00:07.2]} 39. Bd3 {[%clk 0:01:36.2]} 39... Bc6 {[%clk 0:00:06.4]}
40. b3 {[%clk 0:01:36]} 40... Bd7 {[%clk 0:00:06.6]} 41. Bc4 {[%clk 0:01:33.2]}
41... Bc6 {[%clk 0:00:06.3]} 42. Rxd2 {[%clk 0:00:24.3]} 42... Rxd2 {[%clk
0:00:07.2]} 43. Kxd2 {[%clk 0:00:25]} 43... f6 {[%clk 0:00:07.1]} 44. Ke3 {[%clk
0:00:25.4]} 44... Kd6 {[%clk 0:00:07.8]} 45. g3 {[%clk 0:00:25.8]} 45... Bd7
{[%clk 0:00:06]} 46. h4 {[%clk 0:00:26.3]} 46... gxh4 {[%clk 0:00:06.3]} 47.
gxh4 {[%clk 0:00:27.2]} 47... Bc8 {[%clk 0:00:04.4]} 48. f4 {[%clk 0:00:27.6]}
48... Kc5 {[%clk 0:00:03.4]} 49. e5 {[%clk 0:00:26.7]} 49... fxe5 {[%clk
0:00:03.4]} 50. fxe5 {[%clk 0:00:27.6]} 50... Bf5 {[%clk 0:00:03.4]} 51. Kf4
{[%clk 0:00:28]} 51... Bc2 {[%clk 0:00:04]} 52. Kg5 {[%clk 0:00:26.1]} 52... Kc6
{[%clk 0:00:04]} 53. Kg4 {[%clk 0:00:18]} 53... Kc5 {[%clk 0:00:03.2]} 54. Kf4
{[%clk 0:00:18.3]} 54... Kc6 {[%clk 0:00:03.2]} 55. h5 {[%clk 0:00:17]} 55...
Kc5 {[%clk 0:00:03.2]} 56. Kg5 {[%clk 0:00:17.4]} 56... Kc6 {[%clk 0:00:03.5]}
57. h6 {[%clk 0:00:15.4]} 57... gxh6+ {[%clk 0:00:03.1]} 58. Kf6 {[%clk
0:00:16.1]} 58... Kd7 {[%clk 0:00:04]} 59. e6+ {[%clk 0:00:15.8]} 59... Kd6
{[%clk 0:00:01.7]} 60. e7 {[%clk 0:00:16.3]} 60... Bg6 {[%clk 0:00:01.5]} 61.
Kxg6 {[%clk 0:00:17]} 1-0

[Event "Early-Titled-Tuesday-Blitz-November-28-2023"]
[Site "Chess.com"]
[Date "2023.11.28"]
[Round "5"]
[White "viktorskliarov"]
[Black "DeArron_Fox"]
[Result "1/2-1/2"]
[WhiteElo "2623"]
[BlackElo "2481"]
[TimeControl "180+1"]
[EndTime "8:58:45 PST"]
[Termination "Game drawn by agreement"]

1. e4 {[%clk 0:03:00.9]} 1... c5 {[%clk 0:02:22.4]} 2. Nf3 {[%clk 0:02:57.5]}
2... e6 {[%clk 0:02:22.6]} 3. c3 {[%clk 0:02:57.2]} 3... d5 {[%clk 0:02:22.2]}
4. e5 {[%clk 0:02:57.1]} 4... d4 {[%clk 0:02:22.1]} 5. d3 {[%clk 0:02:45.2]}
5... Bd7 {[%clk 0:02:19.9]} 6. cxd4 {[%clk 0:02:41.9]} 6... cxd4 {[%clk
0:02:18.9]} 7. Nbd2 {[%clk 0:02:39.6]} 7... Bc6 {[%clk 0:02:17.3]} 8. Be2 {[%clk
0:02:34.4]} 8... Ne7 {[%clk 0:02:14.5]} 9. O-O {[%clk 0:02:29.4]} 9... Ng6
{[%clk 0:02:13]} 10. Nb3 {[%clk 0:02:14.5]} 10... Nd7 {[%clk 0:02:00.8]} 11.
Nfxd4 {[%clk 0:01:54.5]} 11... Ndxe5 {[%clk 0:01:57.1]} 12. f4 {[%clk 0:01:19]}
12... Nd7 {[%clk 0:01:44.5]} 13. Nxc6 {[%clk 0:01:15.9]} 13... bxc6 {[%clk
0:01:45.4]} 14. Bf3 {[%clk 0:01:04.3]} 14... Be7 {[%clk 0:01:42.7]} 15. Be3
{[%clk 0:00:59.1]} 15... Rc8 {[%clk 0:01:31.7]} 16. Rc1 {[%clk 0:00:38.9]} 16...
c5 {[%clk 0:01:08.7]} 17. Qd2 {[%clk 0:00:38.5]} 17... O-O {[%clk 0:01:06.1]}
18. Qf2 {[%clk 0:00:38]} 18... a5 {[%clk 0:00:35.3]} 19. Bb7 {[%clk 0:00:30.1]}
19... Rb8 {[%clk 0:00:24.4]} 20. Be4 {[%clk 0:00:27.9]} 20... a4 {[%clk
0:00:18.4]} 21. Nxc5 {[%clk 0:00:27.1]} 21... Nxc5 {[%clk 0:00:16.7]} 22. Bxc5
{[%clk 0:00:27.2]} 22... Bxc5 {[%clk 0:00:14.8]} 23. Rxc5 {[%clk 0:00:27.1]}
23... Qb6 {[%clk 0:00:05.2]} 24. Rc2 {[%clk 0:00:16.8]} 24... f5 {[%clk
0:00:05.1]} 25. Bc6 {[%clk 0:00:12.2]} 25... Rfc8 {[%clk 0:00:04.5]} 26. Qxb6
{[%clk 0:00:09.8]} 26... Rxb6 {[%clk 0:00:05.4]} 27. Bxa4 {[%clk 0:00:10]} 27...
Rxc2 {[%clk 0:00:06.1]} 28. Bxc2 {[%clk 0:00:10.6]} 28... Rxb2 {[%clk
0:00:05.8]} 29. Bb3 {[%clk 0:00:10.9]} 29... Kf7 {[%clk 0:00:03.5]} 30. g3
{[%clk 0:00:11.4]} 30... Ne7 {[%clk 0:00:03.2]} 31. Rf2 {[%clk 0:00:10.5]} 31...
Rb1+ {[%clk 0:00:03]} 32. Kg2 {[%clk 0:00:11.1]} 32... Nc6 {[%clk 0:00:02.6]}
33. Rc2 {[%clk 0:00:07.6]} 33... Nd4 {[%clk 0:00:03.1]} 34. Rc3 {[%clk
0:00:05.3]} 34... Rb2+ {[%clk 0:00:03.2]} 35. Kf1 {[%clk 0:00:04.2]} 35... Rxh2
{[%clk 0:00:02.2]} 36. a4 {[%clk 0:00:03.5]} 36... Rb2 {[%clk 0:00:01.9]} 37.
Bc4 {[%clk 0:00:03.9]} 37... Kf6 {[%clk 0:00:02.4]} 38. a5 {[%clk 0:00:03.7]}
38... Rb1+ {[%clk 0:00:02.9]} 39. Kf2 {[%clk 0:00:03.6]} 39... Ra1 {[%clk
0:00:03.8]} 40. a6 {[%clk 0:00:03.6]} 40... e5 {[%clk 0:00:03.8]} 41. fxe5+
{[%clk 0:00:03.1]} 41... Kxe5 {[%clk 0:00:04.7]} 42. Bg8 {[%clk 0:00:03.1]}
42... h5 {[%clk 0:00:02.9]} 43. Rc5+ {[%clk 0:00:03.6]} 43... Kf6 {[%clk
0:00:02.5]} 44. Bc4 {[%clk 0:00:03.9]} 44... g5 {[%clk 0:00:02.1]} 45. Rd5
{[%clk 0:00:04]} 45... Nc2 {[%clk 0:00:01.9]} 46. Rd6+ {[%clk 0:00:04.1]} 46...
Ke5 {[%clk 0:00:02.4]} 47. Re6+ {[%clk 0:00:04.4]} 47... Kd4 {[%clk 0:00:02.7]}
48. Rg6 {[%clk 0:00:04.8]} 48... Nb4 {[%clk 0:00:02.5]} 49. Rxg5 {[%clk
0:00:04.8]} 49... Nxa6 {[%clk 0:00:02.6]} 50. Bxa6 {[%clk 0:00:04.6]} 50... Rxa6
{[%clk 0:00:02.3]} 51. Rxf5 {[%clk 0:00:04.8]} 51... Kxd3 {[%clk 0:00:02]} 52.
Rxh5 {[%clk 0:00:05.1]} 52... Ke4 {[%clk 0:00:02.6]} 53. Rh4+ {[%clk 0:00:05.4]}
53... Kf5 {[%clk 0:00:02.6]} 54. Rf4+ {[%clk 0:00:06.1]} 54... Kg5 {[%clk
0:00:03.1]} 55. Rb4 {[%clk 0:00:06.8]} 55... Ra2+ {[%clk 0:00:02.9]} 56. Kf3
{[%clk 0:00:07]} 56... Ra3+ {[%clk 0:00:03.8]} 57. Kg2 {[%clk 0:00:07.4]}
1/2-1/2